bitfinex/quotes_SOLUSD_20250607
["timestamp","ask_amount","ask_price","bid_price","bid_amount"]
[1749319033018,40.16,150.52,150.51,2.48811625]
[1749319033924,40.16,150.52,150.51,2.48800003]
[1749319034134,40.16,150.52,150.5,5.16840202]
[1749319034329,40.16,150.52,150.51,2.4877116]
[1749319034636,40.16,150.52,150.5,11.81262126]
[1749319035436,40.16,150.52,150.51,2.48767947]
[1749319035646,40.16,150.52,150.5,11.81262126]
[1749319035829,40.16,150.52,150.51,2.48769336]
[1749319036331,40.16,150.52,150.51,90.60985336]
[1749319036825,40.16,150.52,150.51,94.7662368]
[1749319037025,40.16,150.52,150.51,97.25339062]
[1749319037226,40.16,150.52,150.51,90.60931817]
[1749319037429,40.16,150.52,150.51,90.60931844]
[1749319037936,40.16,150.52,150.51,90.6093183]
[1749319038146,40.16,150.52,150.51,90.60931382]
[1749319038485,40.16,150.52,150.51,90.60931409]
[1749319038635,40.16,150.52,150.51,90.60931396]
[1749319038841,40.16,150.52,150.51,90.60931382]
[1749319039636,40.16,150.52,150.51,90.60931396]
[1749319039847,40.16,150.52,150.51,88.12216]
[1749319040021,40.16,150.52,150.51,90.60929994]
[1749319040221,40.16,150.52,150.51,90.60930021]
[1749319040421,40.16,150.52,150.51,90.60930007]
[1749319041240,40.16,150.52,150.51,88.12216]
[1749319041420,40.16,150.52,150.51,90.60931382]
[1749319041821,40.16,150.52,150.51,90.60931409]
[1749319042024,40.16,150.52,150.51,90.60931396]
[1749319042419,40.16,150.52,150.51,88.12216]
[1749319042846,40.16,150.52,150.51,90.60931409]
[1749319043019,40.16,150.52,150.51,88.12216]
[1749319043339,40.16,150.52,150.51,90.61027914]
[1749319043537,40.16,150.52,150.51,90.61027887]
[1749319043914,5.16840202,150.54,150.51,88.12216]
[1749319044137,40.16,150.53,150.52,2.48812292]
[1749319044345,40.16,150.53,150.51,88.12216]
[1749319044641,40.16,150.53,150.52,2.48812295]
[1749319044940,40.16,150.53,150.52,2.48812266]
[1749319045138,40.16,150.53,150.51,88.12216]
[1749319045444,40.16,150.53,150.52,2.48810878]
[1749319045747,40.16,150.53,150.52,2.48810864]
[1749319046047,40.16,150.53,150.52,2.48810891]
[1749319046729,40.16,150.53,150.52,2.48787921]
[1749319046925,40.16,150.53,150.51,94.76622866]
[1749319047127,40.16,150.53,150.51,88.12216]
[1749319047947,40.16,150.53,150.52,2.48789524]
[1749319048147,40.16,150.53,150.52,90.61005524]
[1749319048353,40.16,150.53,150.52,90.6100553]
[1749319048539,40.16,150.53,150.52,90.60991912]
[1749319048832,40.16,150.53,150.52,90.60991939]
[1749319049047,40.16,150.53,150.52,90.60991926]
[1749319049245,40.16,150.53,150.52,88.12216]
[1749319049546,40.16,150.53,150.52,90.60991912]
[1749319050058,40.16,150.53,150.52,90.61026252]
[1749319050254,40.16,150.53,150.52,88.12216]
[1749319050467,40.16,150.53,150.52,90.6103181]
[1749319050943,40.16,150.53,150.52,88.12216]
[1749319051439,40.16,150.53,150.52,90.61030882]
[1749319051859,40.16,150.53,150.52,88.12216]
[1749319056267,51.97159606,150.53,150.52,88.12216]
[1749319057333,51.97159606,150.53,150.48,2.74302556]
[1749319057334,18.64964886,150.52,150.48,2.74302556]
[1749319057544,5.16840202,150.49,150.48,2.74302556]
[1749319057744,45.32840202,150.49,150.48,2.74302556]
[1749319058439,51.97336181,150.49,150.48,2.74302556]
[1749319060149,70.62301067,150.49,150.48,2.74302556]
[1749319060938,30.46301067,150.49,150.48,2.74302556]
[1749319061135,70.64301067,150.49,150.48,2.74302556]
[1749319062740,45.34840202,150.49,150.48,2.74302556]
[1749319064952,11.81336181,150.49,150.48,2.74302556]
[1749319065153,51.99336181,150.49,150.48,2.74302556]
[1749319069967,70.64301067,150.49,150.48,2.74302556]
[1749319084165,65.47460865,150.49,150.48,2.74302556]
[1749319084360,70.64301067,150.49,150.48,2.74302556]
[1749319086069,65.47460865,150.49,150.48,2.74302556]
[1749319086368,70.64301067,150.49,150.48,2.74302556]
[1749319087788,63.99805088,150.49,150.48,2.74302556]
[1749319091578,70.64301067,150.49,150.48,2.74302556]
[1749319094501,63.99805088,150.49,150.48,2.74302556]
[1749319097803,70.64301067,150.49,150.48,2.74302556]
[1749319101411,63.99805088,150.49,150.48,2.74302556]
[1749319102710,70.64301067,150.49,150.48,2.74302556]
[1749319112513,63.99805088,150.49,150.48,2.74302556]
[1749319112708,70.64301067,150.49,150.48,2.74302556]
[1749319142536,70.62301067,150.49,150.48,2.74302556]
[1749319147945,40.16,150.49,150.48,5.23525607]
[1749319148120,23.81805088,150.51,150.48,5.23525607]
[1749319148321,40.16,150.5,150.48,2.74302556]
[1749319148743,58.80964886,150.5,150.49,2.49216682]
[1749319148932,18.64964886,150.5,150.49,2.49216682]
[1749319149121,18.64964886,150.5,150.49,2.49216653]
[1749319149122,58.80964886,150.5,150.49,2.49216653]
[1749319149726,63.97805088,150.5,150.49,2.49216626]
[1749319150144,63.97805088,150.5,150.48,2.74302556]
[1749319150335,63.97805088,150.5,150.49,2.4922219]
[1749319150523,63.97805088,150.5,150.49,2.49217233]
[1749319150724,63.97805088,150.5,150.49,2.49219393]
[1749319151031,63.97805088,150.5,150.49,2.49219448]
[1749319151228,63.97805088,150.5,150.48,2.74302556]
[1749319153453,63.97805088,150.5,150.49,2.49219688]
[1749319153643,63.97805088,150.5,150.49,2.49215487]
[1749319153953,63.97805088,150.5,150.48,2.74302556]
[1749319154138,63.97805088,150.5,150.49,2.49219701]
[1749319154340,63.97805088,150.5,150.49,2.49219434]
[1749319154852,63.97805088,150.5,150.48,2.74302556]
[1749319155051,63.97805088,150.5,150.49,2.4921702]
[1749319155349,63.97805088,150.5,150.49,2.49215615]
[1749319155961,63.97805088,150.5,150.48,2.74302556]
[1749319156958,58.80964886,150.5,150.48,2.74302556]
[1749319158642,63.97805088,150.5,150.48,2.74302556]
[1749319161550,23.81805088,150.5,150.48,2.74302556]
[1749319161847,40.16,150.49,150.48,2.74302556]
[1749319162047,40.16,150.49,150.48,5.23260343]
[1749319162455,40.16,150.49,150.48,5.2326097]
[1749319162669,40.16,150.49,150.48,5.23232395]
[1749319162980,40.16,150.49,150.48,5.2323261]
[1749319163150,40.16,150.49,150.48,2.74302556]
[1749319163353,40.16,150.49,150.48,5.23229843]
[1749319164265,40.16,150.49,150.48,5.23231834]
[1749319164578,40.16,150.49,150.48,2.74302556]
[1749319164749,40.16,150.49,150.48,5.23229767]
[1749319166095,40.16,150.49,150.48,5.23143045]
[1749319166252,40.16,150.49,150.48,5.23143072]
[1749319166653,40.16,150.49,150.48,5.23143058]
[1749319167065,40.16,150.49,150.48,5.23141654]
[1749319167449,40.16,150.49,150.48,2.74302556]
[1749319167972,26.0,150.52,150.48,11.87664206]
[1749319168146,18.64964886,150.55,150.51,5.16840202]
[1749319168346,23.81805088,150.55,150.51,93.29056202]
[1749319168572,40.16,150.54,150.51,93.29056202]
[1749319169152,40.16,150.54,150.52,2.48772846]
[1749319169352,40.16,150.54,150.51,93.29056202]
[1749319169547,56.46040915,150.55,150.51,93.29056202]
[1749319169752,40.16,150.54,150.51,93.29056202]
[1749319172481,40.16,150.54,150.51,11.81246518]
[1749319173364,40.16,150.54,150.51,5.16840202]
[1749319174969,40.16,150.54,150.51,11.81242316]
[1749319178390,40.16,150.54,150.51,6.64402114]
[1749319178581,45.32840202,150.54,150.51,6.64402114]
[1749319179487,40.16,150.54,150.51,11.81242316]
[1749319187298,40.16,150.54,150.51,99.93458316]
[1749319187687,45.32840202,150.54,150.51,88.12216]
[1749319192094,5.16840202,150.54,150.51,88.12216]
[1749319192280,40.14,150.54,150.51,99.93460577]
[1749319196981,58.78964886,150.55,150.52,11.81196168]
[1749319197300,18.64964886,150.55,150.52,11.81196168]
[1749319197476,58.78964886,150.55,150.52,11.81196168]
[1749319199006,58.78964886,150.55,150.52,99.93412168]
[1749319200498,63.95805088,150.55,150.52,88.12216]
[1749319200826,5.16840202,150.53,150.52,88.12216]
[1749319201129,18.64964886,150.52,150.48,2.74302556]
[1749319201292,23.81805088,150.49,150.48,2.74302556]
[1749319201496,63.95805088,150.49,150.48,2.74302556]
[1749319201728,110.63165896,150.49,150.48,2.74302556]
[1749319202010,110.63165896,150.49,150.38,14.71581959]
[1749319202011,51.27634886,150.45,150.37,17.79206346]
[1749319202212,18.64964886,150.43,150.38,2.49031789]
[1749319202513,18.64964886,150.41,150.37,0.9218343]
[1749319202717,23.81805088,150.38,150.37,0.9218343]
[1749319202901,58.82964886,150.38,150.37,0.9218343]
[1749319203211,58.82964886,150.38,150.37,0.4218343]
[1749319203212,65.47946931,150.38,150.37,0.4218343]
[1749319203416,58.82964886,150.38,150.37,0.4218343]
[1749319203915,40.24,150.41,150.37,7.07183984]
[1749319204415,64.05805088,150.42,150.38,5.16840202]
[1749319204596,58.88964886,150.42,150.39,5.16840202]
[1749319204803,58.88964886,150.42,150.4,5.16840202]
[1749319205118,18.64964886,150.42,150.41,6.64849411]
[1749319205297,48.34627814,150.44,150.41,6.64849411]
[1749319205908,26.755927,150.45,150.41,14.75477225]
[1749319206108,40.24,150.45,150.42,8.10627814]
[1749319206305,40.24,150.45,150.44,8.10627814]
[1749319206504,58.90964886,150.47,150.44,8.10627814]
[1749319207205,58.90964886,150.47,150.44,14.75343891]
[1749319207428,40.26,150.48,150.45,8.10627814]
[1749319207608,18.64964886,150.49,150.46,8.10627814]
[1749319208242,58.92964886,150.49,150.46,8.10627814]
[1749319208533,67.035927,150.49,150.45,8.10627814]
[1749319208729,26.755927,150.48,150.44,14.75343891]
[1749319208921,18.64964886,150.48,150.44,14.75343891]
[1749319209118,18.64964886,150.48,150.45,8.10627814]
[1749319210544,48.38627814,150.49,150.45,14.7528534]
[1749319210745,40.28,150.49,150.45,14.7528534]
[1749319211114,40.28,150.49,150.46,8.10627814]
[1749319211319,40.28,150.5,150.48,6.64540138]
[1749319211736,58.92964886,150.51,150.48,8.10627814]
[1749319213026,58.92964886,150.51,150.49,8.10627814]
[1749319213931,58.92964886,150.51,150.48,8.10627814]
[1749319214532,65.57395966,150.51,150.48,8.10627814]
[1749319214731,65.57395966,150.51,150.47,8.10627814]
[1749319214924,73.6802378,150.51,150.47,8.10627814]
[1749319215129,73.6602378,150.51,150.47,8.10627814]
[1749319215820,65.55395966,150.51,150.47,8.10627814]
[1749319217144,73.6602378,150.51,150.46,107.04627814]
[1749319219938,65.55395966,150.51,150.46,107.04627814]
[1749319222528,65.55395966,150.51,150.47,8.10627814]
[1749319222730,65.55395966,150.51,150.47,96.80627814]
[1749319224930,73.6602378,150.51,150.47,96.80627814]
[1749319225441,65.55395966,150.51,150.47,96.80627814]
[1749319225652,73.6602378,150.51,150.47,96.80627814]
[1749319226030,65.55395966,150.51,150.47,96.80627814]
[1749319229739,65.55395966,150.51,150.47,88.7]
[1749319233944,65.55395966,150.51,150.43,88.7]
[1749319233945,8.10627814,150.48,150.43,88.7]
[1749319234253,18.64964886,150.49,150.43,107.10627814]
[1749319234254,8.10627814,150.46,150.43,107.10627814]
[1749319234457,8.10627814,150.46,150.43,99.0]
[1749319234969,40.22,150.47,150.43,99.0]
[1749319235273,8.10627814,150.46,150.43,99.0]
[1749319235436,8.10627814,150.46,150.43,105.64746661]
[1749319235934,48.32627814,150.47,150.43,105.64746661]
[1749319236335,40.22,150.47,150.44,8.10627814]
[1749319236537,67.015927,150.49,150.44,8.10627814]
[1749319237430,58.90964886,150.49,150.44,96.80627814]
[1749319237631,67.015927,150.49,150.44,96.80627814]
[1749319238240,73.66098398,150.49,150.44,103.45333169]
[1749319238559,58.90964886,150.49,150.44,103.45333169]
[1749319238936,58.90964886,150.49,150.45,8.10627814]
[1749319239140,40.26,150.49,150.46,8.10627814]
[1749319240361,40.26,150.49,150.46,14.75251646]
[1749319240855,40.26,150.49,150.46,8.10627814]
[1749319241038,40.26,150.49,150.45,8.10627814]
[1749319241438,8.10627814,150.5,150.45,8.10627814]
[1749319241639,48.36627814,150.49,150.45,8.10627814]
[1749319242167,48.36627814,150.49,150.44,103.45331925]
[1749319242664,55.01130155,150.49,150.44,103.45331925]
[1749319245770,48.36627814,150.49,150.44,103.45331925]
[1749319246153,40.26,150.49,150.44,103.45331925]
[1749319246656,40.26,150.49,150.45,10.28]
[1749319247265,46.90511592,150.49,150.45,10.28]
[1749319248144,55.01139406,150.49,150.45,10.28]
[1749319249478,55.01139406,150.49,150.45,98.98]
[1749319251578,14.75185536,150.48,150.45,98.98]
[1749319253071,6.64557722,150.48,150.45,98.98]
[1749319254170,55.01130632,150.49,150.45,98.98]
[1749319254553,40.26,150.49,150.46,8.10627814]
[1749319255377,40.26,150.49,150.47,8.10627814]
[1749319255552,40.26,150.49,150.47,88.7]
[1749319256060,25.29409016,150.51,150.47,95.34583185]
[1749319256249,40.22,150.5,150.47,96.80627814]
[1749319256872,40.22,150.5,150.47,88.7]
[1749319258968,54.97097298,150.5,150.47,88.7]
[1749319259752,8.10627814,150.48,150.47,88.7]
[1749319259973,48.32627814,150.48,150.47,88.7]
[1749319260660,54.97167952,150.48,150.47,88.7]
[1749319260862,48.32627814,150.48,150.47,88.7]
[1749319261075,48.32627814,150.48,150.44,113.73341544]
[1749319261889,54.97171118,150.48,150.44,107.08627814]
[1749319263564,8.10627814,150.47,150.44,98.98]
[1749319264589,48.32627814,150.48,150.44,107.08627814]
[1749319264889,48.32627814,150.48,150.44,113.73344369]
[1749319265262,40.22,150.48,150.45,8.10627814]
[1749319265463,40.22,150.48,150.46,8.10627814]
[1749319265679,25.29389771,150.51,150.46,14.75250634]
[1749319265871,48.34627814,150.5,150.46,14.75250634]
[1749319266465,48.34627814,150.5,150.46,8.10627814]
[1749319267084,48.34627814,150.5,150.46,96.80627814]
[1749319267800,54.99105591,150.5,150.46,96.80627814]
[1749319269397,54.99105591,150.5,150.46,103.45253746]
[1749319269398,48.34627814,150.5,150.46,103.45253746]
[1749319271377,54.99081024,150.5,150.46,96.80627814]
[1749319271688,40.22,150.5,150.46,103.45253845]
[1749319271893,48.32627814,150.5,150.46,103.45253845]
[1749319276403,25.29294355,150.53,150.47,8.10627814]
[1749319276601,8.10627814,150.51,150.47,96.80627814]
[1749319276899,8.10627814,150.51,150.47,103.45191719]
[1749319277196,48.32627814,150.51,150.47,103.45191719]
[1749319280401,8.10627814,150.5,150.47,88.7]
[1749319280600,8.10627814,150.49,150.47,88.7]
[1749319281106,48.30627814,150.49,150.47,88.7]
[1749319281806,40.2,150.49,150.47,88.7]
[1749319282484,48.30627814,150.49,150.47,88.7]
[1749319291702,40.2,150.49,150.47,88.7]
[1749319292092,40.2,150.49,150.47,95.34574594]
[1749319293111,8.10627814,150.5,150.47,95.34574594]
[1749319293412,40.18,150.5,150.47,100.52855818]
[1749319293749,45.36281224,150.51,150.47,100.52855818]
[1749319295214,48.27817475,150.51,150.47,103.44392069]
[1749319298803,8.09817475,150.51,150.47,103.44392069]
[1749319299122,48.27817475,150.52,150.48,8.09817475]
[1749319301000,8.09817475,150.52,150.48,14.74315504]
[1749319301202,48.27817475,150.52,150.48,14.74315504]
[1749319302497,8.09817475,150.51,150.48,95.34498029]
[1749319307921,40.18,150.52,150.48,103.44315504]
[1749319308102,48.27817475,150.52,150.48,103.44315504]
[1749319315332,8.09817475,150.51,150.48,95.34498029]
[1749319317033,48.27817475,150.52,150.48,95.34498029]
[1749319317212,45.36224613,150.52,150.48,95.34498029]
[1749319320060,5.18224613,150.52,150.48,95.34498029]
[1749319320352,5.18224613,150.51,150.48,95.34498029]
[1749319323539,40.16,150.52,150.48,88.7]
[1749319323540,5.18224613,150.49,150.48,88.7]
[1749319325242,45.34224613,150.5,150.48,88.7]
[1749319327645,45.34224613,150.5,150.48,95.34533272]
[1749319329136,40.16,150.51,150.48,95.34533272]
[1749319330150,45.34224613,150.52,150.48,95.34533272]
[1749319332457,5.18224613,150.51,150.48,95.34533272]
[1749319332752,40.18,150.53,150.49,5.18224613]
[1749319332956,45.36224613,150.53,150.49,93.88224613]
[1749319333123,45.36224613,150.53,150.49,88.7]
[1749319333626,5.18224613,150.52,150.5,6.64451827]
[1749319334025,5.18224613,150.54,150.5,100.5267644]
[1749319334241,45.36224613,150.54,150.5,100.5267644]
[1749319334543,5.18224613,150.53,150.5,95.34451827]
[1749319334927,5.18224613,150.53,150.51,2.48724703]
[1749319335132,5.18224613,150.53,150.52,2.48724703]
[1749319335561,5.18224613,150.53,150.52,2.48721461]
[1749319335962,5.18224613,150.53,150.5,95.34442998]
[1749319336259,5.18224613,150.53,150.51,2.48752097]
[1749319336440,5.18224613,150.53,150.52,2.48752097]
[1749319337357,5.18224613,150.53,150.52,2.48749286]
[1749319338039,5.18224613,150.53,150.52,88.7]
[1749319338246,5.18224613,150.53,150.52,91.18750675]
[1749319338633,5.18224613,150.53,150.52,91.18667632]
[1749319339350,5.18224613,150.53,150.52,91.18666243]
[1749319339664,5.18224613,150.53,150.52,88.7]
[1749319339846,5.18224613,150.53,150.52,91.18648957]
[1749319340851,5.18224613,150.53,150.52,88.7]
[1749319341564,5.18224613,150.53,150.52,91.18640201]
[1749319342578,5.18224613,150.53,150.52,88.7]
[1749319345357,5.18224613,150.53,150.52,91.18588502]
[1749319346182,5.18224613,150.53,150.52,88.7]
[1749319346555,5.18224613,150.53,150.52,91.18590649]
[1749319346783,5.18224613,150.53,150.52,91.18587872]
[1749319347664,5.18224613,150.53,150.52,88.7]
[1749319350201,5.18224613,150.53,150.52,91.1856711]
[1749319350383,40.18,150.54,150.52,97.82896754]
[1749319350706,5.18224613,150.54,150.52,95.34329644]
[1749319351498,5.18224613,150.53,150.52,88.7]
[1749319352906,5.18224613,150.53,150.52,91.18538539]
[1749319353106,97.21986274,150.57,150.52,91.18542704]
[1749319353293,45.92865009,150.57,150.53,7.66736635]
[1749319353508,51.11089622,150.57,150.54,2.48495225]
[1749319353676,5.18224613,150.56,150.52,100.52578066]
[1749319353885,5.18224613,150.56,150.53,2.4849519]
[1749319354099,5.18224613,150.56,150.54,2.48507671]
[1749319354299,5.18224613,150.56,150.52,100.52578066]
[1749319354802,5.18224613,150.56,150.53,2.48498143]
[1749319354989,5.18224613,150.56,150.52,100.52578066]
[1749319355382,5.18224613,150.56,150.54,6.64275275]
[1749319355607,5.18224613,150.56,150.55,2.48494143]
[1749319355911,5.18224613,150.56,150.54,6.64275275]
[1749319356480,5.18224613,150.56,150.53,6.64319404]
[1749319357109,5.18224613,150.56,150.54,2.48500215]
[1749319357406,5.18224613,150.56,150.53,6.64319404]
[1749319357612,5.18224613,150.56,150.54,6.64259792]
[1749319358798,5.18224613,150.57,150.54,95.34259792]
[1749319359118,6.65168476,150.63,150.56,5.18224613]
[1749319359318,5.18224613,150.61,150.57,7.66395646]
[1749319359619,5.18224613,150.61,150.58,6.64098817]
[1749319360201,5.18224613,150.62,150.58,11.8232343]
[1749319361120,58.80964886,150.65,150.59,7.66311891]
[1749319361413,5.18224613,150.63,150.6,10.24]
[1749319361628,58.80964886,150.65,150.6,98.94]
[1749319361792,5.18224613,150.63,150.6,105.57968871]
[1749319363410,5.18224613,150.61,150.6,88.7]
[1749319364518,66.18,150.62,150.6,88.7]
[1749319364813,5.18224613,150.61,150.6,88.7]
[1749319364998,40.18,150.62,150.57,100.52353242]
[1749319365197,45.36224613,150.62,150.57,100.52353242]
[1749319365395,5.18224613,150.62,150.57,100.52353242]
[1749319365593,5.18224613,150.62,150.58,5.18224613]
[1749319366620,5.18224613,150.62,150.59,6.64054718]
[1749319368411,5.18224613,150.62,150.59,95.34054718]
[1749319369813,5.18224613,150.62,150.59,88.7]
[1749319370019,5.18224613,150.62,150.59,95.34032453]
[1749319370617,5.18224613,150.62,150.59,88.7]
[1749319370831,5.18224613,150.61,150.59,88.7]
[1749319374402,5.18224613,150.6,150.59,88.7]
[1749319375818,5.18224613,150.61,150.59,88.7]
[1749319379521,5.18224613,150.6,150.59,88.7]
[1749319380436,11.82235237,150.6,150.59,88.7]
[1749319382017,5.18224613,150.6,150.59,88.7]
[1749319382215,5.18224613,150.61,150.59,88.7]
[1749319383408,5.18224613,150.6,150.59,88.7]
[1749319386329,5.18224613,150.6,150.59,98.98]
[1749319386511,5.18224613,150.61,150.59,98.98]
[1749319386910,5.18224613,150.61,150.59,105.62049843]
[1749319389127,5.18224613,150.62,150.59,105.62049843]
[1749319389335,5.18224613,150.63,150.59,110.80274456]
[1749319389511,5.18224613,150.64,150.6,5.18224613]
[1749319389913,5.18224613,150.64,150.6,93.88224613]
[1749319390319,51.28684556,150.67,150.6,93.88224613]
[1749319390320,5.18224613,150.65,150.61,5.18224613]
[1749319390522,5.18224613,150.65,150.62,6.63922453]
[1749319391630,18.64964886,150.67,150.62,6.63922453]
[1749319391933,5.18224613,150.66,150.62,100.52147066]
[1749319392637,5.18224613,150.67,150.64,6.63834306]
[1749319392832,5.18224613,150.67,150.64,16.91834306]
[1749319393040,66.18,150.69,150.64,16.91834306]
[1749319393209,5.18224613,150.67,150.64,16.91834306]
[1749319395033,5.18224613,150.68,150.64,22.10058919]
[1749319395233,66.2,150.71,150.64,24.9973705]
[1749319395534,66.2,150.71,150.64,113.6973705]
[1749319395535,8.07902744,150.68,150.64,113.6973705]
[1749319397216,32.63539919,150.71,150.65,2.478157]
[1749319397416,8.07902744,150.68,150.64,113.6973705]
[1749319399530,8.07902744,150.68,150.64,105.61834306]
[1749319401519,8.07902744,150.68,150.64,113.6973705]
[1749319402812,32.63556188,150.71,150.65,7.8624]
[1749319403030,8.07902744,150.71,150.68,6.63658083]
[1749319404545,8.07902744,150.72,150.68,6.63658083]
[1749319404924,8.07902744,150.72,150.68,95.33658083]
[1749319407134,8.07902744,150.74,150.7,8.07902744]
[1749319408050,8.07902744,150.74,150.71,6.63525977]
[1749319408247,26.0,150.77,150.71,103.41428721]
[1749319408457,32.63273455,150.77,150.71,95.33525977]
[1749319408625,8.07902744,150.73,150.71,95.33525977]
[1749319408819,8.07902744,150.72,150.71,88.7]
[1749319409235,18.64964886,150.76,150.71,88.7]
[1749319409434,8.07902744,150.72,150.71,88.7]
[1749319417963,73.54349583,150.72,150.71,88.7]
[1749319418163,81.62252327,150.72,150.71,88.7]
[1749319418934,48.25902744,150.72,150.71,88.7]
[1749319419553,8.07902744,150.72,150.71,88.7]
[1749319423666,14.71384697,150.72,150.71,88.7]
[1749319424869,8.07902744,150.72,150.71,88.7]
[1749319426069,14.71384697,150.72,150.71,88.7]
[1749319427168,35.23346095,150.75,150.71,88.7]
[1749319427169,65.44326844,150.75,150.71,88.7]
[1749319427345,8.07902744,150.72,150.71,88.7]
[1749319429262,5.16872783,150.72,150.71,88.7]
[1749319431555,45.32872783,150.73,150.71,88.7]
[1749319431760,5.16872783,150.73,150.71,95.33521009]
[1749319432056,40.18,150.74,150.71,95.33521009]
[1749319432057,5.16872783,150.74,150.71,95.33521009]
[1749319432379,25.28236411,150.77,150.71,100.50393792]
[1749319432543,5.16872783,150.75,150.71,100.50393792]
[1749319433184,8.07218893,150.75,150.71,103.40739902]
[1749319436684,8.07218893,150.74,150.71,95.33521009]
[1749319437196,8.07218893,150.75,150.71,103.40739902]
[1749319440965,74.36713458,150.78,150.71,103.40739902]
[1749319441172,8.07218893,150.75,150.71,103.40739902]
[1749319441999,8.07218893,150.75,150.73,6.63437935]
[1749319442696,74.36713458,150.78,150.73,6.63437935]
[1749319442897,8.07218893,150.75,150.73,6.63437935]
[1749319446896,8.07218893,150.76,150.73,95.33437935]
[1749319448909,8.07218893,150.79,150.75,8.07218893]
[1749319449106,8.07218893,150.79,150.75,96.77218893]
[1749319450315,26.0,150.8,150.75,96.77218893]
[1749319450612,8.07218893,150.79,150.75,96.77218893]
[1749319450808,8.07218893,150.79,150.76,6.63305916]
[1749319453385,8.07218893,150.79,150.76,95.33305916]
[1749319455294,5.16362169,150.79,150.76,95.33305916]
[1749319457385,5.16362169,150.78,150.76,88.7]
[1749319460210,6.6313533,150.8,150.76,88.7]
[1749319460411,5.16362169,150.78,150.76,95.33302997]
[1749319461918,6.65161306,150.81,150.76,28.37929957]
[1749319462194,5.16362169,150.82,150.78,5.16362169]
[1749319462410,51.2779636,150.87,150.77,21.91092169]
[1749319462610,5.16362169,150.81,150.77,15.40362169]
[1749319462811,5.16362169,150.8,150.77,10.24]
[1749319463216,8.06728785,150.79,150.77,16.87239548]
[1749319463408,8.06728785,150.78,150.77,10.24]
[1749319463805,40.4,150.81,150.76,6.6327802]
[1749319464001,8.06728785,150.79,150.76,6.6327802]
[1749319464420,40.4,150.81,150.76,6.6327802]
[1749319464607,8.06728785,150.79,150.76,6.6327802]
[1749319465141,40.4,150.81,150.76,6.6327802]
[1749319465440,8.06728785,150.79,150.76,6.6327802]
[1749319468335,8.06728785,150.79,150.76,95.3327802]
[1749319468712,40.4,150.81,150.76,103.40006805]
[1749319469021,8.06728785,150.82,150.78,8.06728785]
[1749319469335,8.06728785,150.83,150.78,8.06728785]
[1749319469534,8.06728785,150.83,150.78,96.76728785]
[1749319469704,8.06728785,150.83,150.78,107.00728785]
[1749319470209,8.06728785,150.83,150.8,6.63129973]
[1749319472143,59.04964886,150.86,150.8,6.63129973]
[1749319472438,8.06728785,150.83,150.8,6.63129973]
[1749319473032,8.06728785,150.84,150.8,8.06728785]
[1749319473230,8.06728785,150.84,150.79,31.27837611]
[1749319474212,8.06728785,150.84,150.79,119.97837611]
[1749319474629,59.04964886,150.86,150.79,119.97837611]
[1749319474915,27.5533,150.87,150.81,6.63086002]
[1749319474916,8.06728785,150.84,150.81,6.63086002]
[1749319475123,8.06728785,150.85,150.81,95.33086002]
[1749319475335,36.24,150.89,150.82,8.06728785]
[1749319475538,8.06728785,150.88,150.83,8.06728785]
[1749319475922,8.06728785,150.87,150.83,8.06728785]
[1749319476316,18.64964886,150.9,150.84,8.06728785]
[1749319476538,8.06728785,150.88,150.84,8.06728785]
[1749319477042,8.06728785,150.88,150.85,6.62910175]
[1749319477513,8.06728785,150.86,150.83,10.22]
[1749319477837,8.06728785,150.84,150.82,88.7]
[1749319478035,40.4,150.89,150.82,103.39769085]
[1749319478236,40.4,150.89,150.83,8.06728785]
[1749319478419,8.06728785,150.88,150.84,8.06728785]
[1749319478742,8.06728785,150.89,150.84,96.76728785]
[1749319478950,8.06728785,150.91,150.86,8.06728785]
[1749319479257,18.64964886,150.94,150.88,8.06728785]
[1749319479418,1.655,150.95,150.89,8.06728785]
[1749319479749,8.06728785,150.93,150.89,96.76728785]
[1749319480358,1.655,150.95,150.9,8.06728785]
[1749319480561,8.06728785,150.93,150.89,96.76728785]
[1749319480925,8.06728785,150.92,150.89,88.7]
[1749319481223,8.06728785,150.91,150.89,88.7]
[1749319481428,8.06728785,150.9,150.88,88.7]
[1749319481625,8.06728785,150.9,150.88,95.3277736]
[1749319481822,8.06728785,150.91,150.88,95.3277736]
[1749319482834,8.06728785,150.91,150.88,88.7]
[1749319483531,8.06728785,150.92,150.88,103.39491857]